[Event "*** Titled Tuesday Blitz"]
[Site "Chess.com"]
[Date "2021.02.09"]
[Round "2"]
[White "Enriquack"]
[Black "vovachesss"]
[Result "0-1"]
[WhiteElo "2493"]
[BlackElo "2760"]
[TimeControl "180+1"]
[EndTime "10:17:59 PST"]
[Termination "vovachesss won by checkmate"]

1. e4 {[%clk 0:03:00.9]} 1... e5 {[%clk 0:03:00.2]} 2. f4 {[%clk 0:03:01.3]}
2... d5 {[%clk 0:03:00.2]} 3. exd5 {[%clk 0:03:01.3]} 3... exf4 {[%clk
0:03:00.6]} 4. Nf3 {[%clk 0:03:01.5]} 4... Nf6 {[%clk 0:03:00.9]} 5. Bb5+ {[%clk
0:03:01.8]} 5... Bd7 {[%clk 0:02:57.9]} 6. Bc4 {[%clk 0:03:00]} 6... Bd6 {[%clk
0:02:55.3]} 7. Qe2+ {[%clk 0:03:00]} 7... Kf8 {[%clk 0:02:55.6]} 8. O-O {[%clk
0:02:56.9]} 8... h6 {[%clk 0:02:55]} 9. d4 {[%clk 0:02:54.4]} 9... Bg4 {[%clk
0:02:47.9]} 10. Bb3 {[%clk 0:02:52.5]} 10... c6 {[%clk 0:02:45.8]} 11. dxc6
{[%clk 0:02:48.6]} 11... Nxc6 {[%clk 0:02:46.7]} 12. c3 {[%clk 0:02:46.9]} 12...
g5 {[%clk 0:02:42.9]} 13. Nbd2 {[%clk 0:02:47]} 13... Kg7 {[%clk 0:02:42.1]} 14.
Nc4 {[%clk 0:02:26]} 14... Re8 {[%clk 0:02:40.5]} 15. Qd3 {[%clk 0:02:20.1]}
15... Bc7 {[%clk 0:02:35.3]} 16. Bc2 {[%clk 0:02:16.8]} 16... Bh5 {[%clk
0:02:27.9]} 17. Re1 {[%clk 0:01:47.3]} 17... Rxe1+ {[%clk 0:01:41.7]} 18. Nxe1
{[%clk 0:01:47.1]} 18... Qd5 {[%clk 0:01:42.1]} 19. Bb3 {[%clk 0:01:40.7]} 19...
Qd7 {[%clk 0:01:37.1]} 20. Bd2 {[%clk 0:01:36.8]} 20... Re8 {[%clk 0:01:36.4]}
21. Nf3 {[%clk 0:01:36.9]} 21... Bg6 {[%clk 0:01:27.8]} 22. Qf1 {[%clk
0:01:34.1]} 22... Ne4 {[%clk 0:01:25.8]} 23. Re1 {[%clk 0:01:21.5]} 23... b5
{[%clk 0:01:18.5]} 24. Na3 {[%clk 0:01:13]} 24... g4 {[%clk 0:01:16.5]} 25. Rxe4
{[%clk 0:00:57]} 25... Rxe4 {[%clk 0:01:11.4]} 26. Nh4 {[%clk 0:00:56.5]} 26...
a6 {[%clk 0:01:05.5]} 27. Nxg6 {[%clk 0:00:55.5]} 27... fxg6 {[%clk 0:01:05.5]}
28. Bc2 {[%clk 0:00:52.8]} 28... Re7 {[%clk 0:01:02.2]} 29. Bxf4 {[%clk
0:00:51.4]} 29... Rf7 {[%clk 0:01:01.7]} 30. g3 {[%clk 0:00:45.7]} 30... Bxf4
{[%clk 0:00:45.9]} 31. gxf4 {[%clk 0:00:45.3]} 31... Qd6 {[%clk 0:00:44.9]} 32.
Bb3 {[%clk 0:00:37.1]} 32... Rxf4 {[%clk 0:00:42]} 33. Qg2 {[%clk 0:00:37.3]}
33... Ne7 {[%clk 0:00:37.7]} 34. Nc2 {[%clk 0:00:36.8]} 34... Nf5 {[%clk
0:00:35.2]} 35. Qb7+ {[%clk 0:00:35]} 35... Qe7 {[%clk 0:00:35.1]} 36. Qd5
{[%clk 0:00:30.1]} 36... h5 {[%clk 0:00:32.8]} 37. Qg8+ {[%clk 0:00:22.3]} 37...
Kh6 {[%clk 0:00:33.2]} 38. Qh8+ {[%clk 0:00:22.7]} 38... Kg5 {[%clk 0:00:33.3]}
39. Qb8 {[%clk 0:00:23.2]} 39... Qe2 {[%clk 0:00:23.1]} 40. Qa8 {[%clk
0:00:21.5]} 40... Qf1# {[%clk 0:00:21.3]} 0-1

[Event "*** Titled Tuesday Blitz"]
[Site "Chess.com"]
[Date "2021.02.09"]
[Round "2"]
[White "theultimatehunter"]
[Black "bugsbunny444"]
[Result "1-0"]
[WhiteElo "2240"]
[BlackElo "2589"]
[TimeControl "180+1"]
[EndTime "10:17:59 PST"]
[Termination "theultimatehunter won on time"]

1. d4 {[%clk 0:03:00.9]} 1... e6 {[%clk 0:02:59.5]} 2. c4 {[%clk 0:03:01.2]}
2... b6 {[%clk 0:02:59.3]} 3. e4 {[%clk 0:03:00.6]} 3... Bb7 {[%clk 0:02:59.6]}
4. Bd3 {[%clk 0:03:00.8]} 4... Bb4+ {[%clk 0:03:00.1]} 5. Bd2 {[%clk 0:02:59.4]}
5... Bxd2+ {[%clk 0:02:59.8]} 6. Qxd2 {[%clk 0:02:59.4]} 6... f5 {[%clk
0:03:00.2]} 7. Nc3 {[%clk 0:02:58.8]} 7... Nf6 {[%clk 0:03:00.3]} 8. Qe2 {[%clk
0:02:57.1]} 8... O-O {[%clk 0:02:59]} 9. Nf3 {[%clk 0:02:52.4]} 9... fxe4 {[%clk
0:02:59.1]} 10. Nxe4 {[%clk 0:02:52.4]} 10... Nc6 {[%clk 0:02:59.1]} 11. O-O-O
{[%clk 0:02:48.6]} 11... Nb4 {[%clk 0:02:53.5]} 12. Bb1 {[%clk 0:02:46.6]} 12...
Nxa2+ {[%clk 0:02:29.1]} 13. Bxa2 {[%clk 0:02:37.8]} 13... Bxe4 {[%clk 0:02:11]}
14. Bb1 {[%clk 0:02:34.9]} 14... Bxb1 {[%clk 0:01:57]} 15. Kxb1 {[%clk
0:02:35.8]} 15... Qe8 {[%clk 0:01:56.3]} 16. Qd3 {[%clk 0:01:56.8]} 16... Qh5
{[%clk 0:01:30.4]} 17. Rhe1 {[%clk 0:01:39.5]} 17... Qf5 {[%clk 0:01:06.6]} 18.
Qxf5 {[%clk 0:00:52.2]} 18... exf5 {[%clk 0:01:06.6]} 19. Re7 {[%clk 0:00:50]}
19... Rae8 {[%clk 0:00:59.9]} 20. Rde1 {[%clk 0:00:49.8]} 20... Rxe7 {[%clk
0:00:55.6]} 21. Rxe7 {[%clk 0:00:50.7]} 21... Re8 {[%clk 0:00:56.2]} 22. Rxe8+
{[%clk 0:00:47]} 22... Nxe8 {[%clk 0:00:56.5]} 23. Ne5 {[%clk 0:00:45.7]} 23...
Nf6 {[%clk 0:00:45.6]} 24. Kc2 {[%clk 0:00:41.7]} 24... a5 {[%clk 0:00:44]} 25.
f3 {[%clk 0:00:41.1]} 25... d6 {[%clk 0:00:35.5]} 26. Nc6 {[%clk 0:00:34]} 26...
Kf7 {[%clk 0:00:35.1]} 27. Kb3 {[%clk 0:00:32]} 27... Ke6 {[%clk 0:00:30.4]} 28.
d5+ {[%clk 0:00:31.6]} 28... Kf7 {[%clk 0:00:24.8]} 29. Ka4 {[%clk 0:00:31.7]}
29... Ke8 {[%clk 0:00:15.2]} 30. Kb5 {[%clk 0:00:32]} 30... Kd7 {[%clk
0:00:15.6]} 31. Nd4 {[%clk 0:00:32]} 31... g6 {[%clk 0:00:15.3]} 32. Ne6 {[%clk
0:00:31.9]} 32... Ng8 {[%clk 0:00:01.8]} 33. Nf8+ {[%clk 0:00:31.6]} 33... Ke7
{[%clk 0:00:01.8]} 34. Nxh7 {[%clk 0:00:32.3]} 34... Kd7 {[%clk 0:00:01.5]} 35.
Nf8+ {[%clk 0:00:31.4]} 1-0

[Event "*** Titled Tuesday Blitz"]
[Site "Chess.com"]
[Date "2021.02.09"]
[Round "2"]
[White "esrosenberg"]
[Black "FrenchMonster2002"]
[Result "0-1"]
[WhiteElo "2034"]
[BlackElo "2374"]
[TimeControl "180+1"]
[EndTime "10:17:59 PST"]
[Termination "FrenchMonster2002 won by checkmate"]

1. Nf3 {[%clk 0:03:00.9]} 1... Nf6 {[%clk 0:03:00]} 2. c4 {[%clk 0:03:01]} 2...
g6 {[%clk 0:03:00.6]} 3. Nc3 {[%clk 0:03:00.6]} 3... Bg7 {[%clk 0:03:01.2]} 4.
e4 {[%clk 0:03:01.1]} 4... d6 {[%clk 0:03:01.9]} 5. d4 {[%clk 0:03:01.7]} 5...
O-O {[%clk 0:03:02.4]} 6. h3 {[%clk 0:03:02.3]} 6... Nc6 {[%clk 0:03:02.4]} 7.
d5 {[%clk 0:03:02.1]} 7... Nb4 {[%clk 0:03:02.5]} 8. Be3 {[%clk 0:02:39.9]} 8...
e6 {[%clk 0:02:59.9]} 9. Be2 {[%clk 0:02:09.2]} 9... Re8 {[%clk 0:02:58.9]} 10.
O-O {[%clk 0:02:05.1]} 10... exd5 {[%clk 0:02:57.4]} 11. exd5 {[%clk 0:02:06]}
11... Bf5 {[%clk 0:02:57.9]} 12. Rc1 {[%clk 0:02:02.5]} 12... Ne4 {[%clk
0:02:52.2]} 13. Nxe4 {[%clk 0:01:46.9]} 13... Bxe4 {[%clk 0:02:53.1]} 14. a3
{[%clk 0:01:47.2]} 14... Na6 {[%clk 0:02:46.4]} 15. b4 {[%clk 0:01:35.3]} 15...
Bb2 {[%clk 0:02:43.8]} 16. Bd4 {[%clk 0:01:31.2]} 16... Bxc1 {[%clk 0:02:30.5]}
17. Qxc1 {[%clk 0:01:32.1]} 17... Bxd5 {[%clk 0:02:25.7]} 18. Qh6 {[%clk
0:01:12.2]} 18... f6 {[%clk 0:02:23.6]} 19. Ng5 {[%clk 0:01:02.3]} 19... Qe7
{[%clk 0:02:16.5]} 20. cxd5 {[%clk 0:00:37.7]} 20... fxg5 {[%clk 0:02:15.6]} 21.
Bg4 {[%clk 0:00:38.1]} 21... Qf8 {[%clk 0:02:02.7]} 22. Qxg5 {[%clk 0:00:27.1]}
22... Re7 {[%clk 0:01:42.8]} 23. Be6+ {[%clk 0:00:25.6]} 23... Rxe6 {[%clk
0:01:42.9]} 24. dxe6 {[%clk 0:00:26.5]} 24... Re8 {[%clk 0:01:38.9]} 25. Re1
{[%clk 0:00:23.7]} 25... Nb8 {[%clk 0:01:30.5]} 26. f4 {[%clk 0:00:20]} 26...
Nc6 {[%clk 0:01:30.5]} 27. Bc3 {[%clk 0:00:20.1]} 27... Qf5 {[%clk 0:01:22.1]}
28. Qh6 {[%clk 0:00:14.2]} 28... Qf8 {[%clk 0:01:22.1]} 29. Qg5 {[%clk
0:00:13.7]} 29... a6 {[%clk 0:01:04.6]} 30. g4 {[%clk 0:00:13]} 30... d5 {[%clk
0:00:55.4]} 31. Qxd5 {[%clk 0:00:11.6]} 31... Qxf4 {[%clk 0:00:55.6]} 32. e7+
{[%clk 0:00:11.4]} 32... Qf7 {[%clk 0:00:56.2]} 33. Qxf7+ {[%clk 0:00:09.8]}
33... Kxf7 {[%clk 0:00:57.1]} 34. Rf1+ {[%clk 0:00:07.6]} 34... Kxe7 {[%clk
0:00:56.4]} 35. Re1+ {[%clk 0:00:08.3]} 35... Kd7 {[%clk 0:00:55.4]} 36. Rxe8
{[%clk 0:00:09.2]} 36... Kxe8 {[%clk 0:00:56.2]} 37. Kg2 {[%clk 0:00:08.5]}
37... Kf7 {[%clk 0:00:56.2]} 38. Kg3 {[%clk 0:00:08.4]} 38... h5 {[%clk
0:00:43.9]} 39. gxh5 {[%clk 0:00:08.3]} 39... gxh5 {[%clk 0:00:44.8]} 40. Kh4
{[%clk 0:00:08.9]} 40... Kg6 {[%clk 0:00:45.2]} 41. a4 {[%clk 0:00:09.4]} 41...
Ne7 {[%clk 0:00:41.9]} 42. Be5 {[%clk 0:00:08.2]} 42... Nf5# {[%clk 0:00:41.7]}
0-1

[Event "*** Titled Tuesday Blitz"]
[Site "Chess.com"]
[Date "2021.02.09"]
[Round "2"]
[White "Agibileg"]
[Black "Gabrielian_Artur"]
[Result "0-1"]
[WhiteElo "2501"]
[BlackElo "2793"]
[TimeControl "180+1"]
[EndTime "10:18:00 PST"]
[Termination "Gabrielian_Artur won by resignation"]

1. d4 {[%clk 0:03:00.9]} 1... Nf6 {[%clk 0:02:59.6]} 2. c4 {[%clk 0:03:00.9]}
2... e6 {[%clk 0:02:59.8]} 3. Nc3 {[%clk 0:03:01.2]} 3... Bb4 {[%clk 0:02:59.4]}
4. Qc2 {[%clk 0:02:59.6]} 4... c5 {[%clk 0:02:59.2]} 5. dxc5 {[%clk 0:02:58.5]}
5... O-O {[%clk 0:02:58.9]} 6. a3 {[%clk 0:02:57.8]} 6... Bxc5 {[%clk
0:02:59.1]} 7. Nf3 {[%clk 0:02:58.3]} 7... d5 {[%clk 0:02:59]} 8. cxd5 {[%clk
0:02:44.1]} 8... exd5 {[%clk 0:02:57.3]} 9. Bg5 {[%clk 0:02:44.2]} 9... d4
{[%clk 0:02:55.8]} 10. Rd1 {[%clk 0:02:39.8]} 10... Nc6 {[%clk 0:02:32.8]} 11.
e3 {[%clk 0:02:32]} 11... Re8 {[%clk 0:02:14.8]} 12. Be2 {[%clk 0:02:14.1]}
12... h6 {[%clk 0:02:12.7]} 13. Bh4 {[%clk 0:02:07.5]} 13... g5 {[%clk
0:02:06.7]} 14. Bg3 {[%clk 0:02:07.2]} 14... g4 {[%clk 0:02:06.9]} 15. Nxd4
{[%clk 0:02:06.4]} 15... Bxd4 {[%clk 0:02:04.3]} 16. O-O {[%clk 0:02:00.2]}
16... Qb6 {[%clk 0:01:51.8]} 17. Na4 {[%clk 0:01:53.8]} 17... Qa5 {[%clk
0:01:50.6]} 18. exd4 {[%clk 0:01:52.7]} 18... Bf5 {[%clk 0:01:50.7]} 19. Bd3
{[%clk 0:01:44.2]} 19... Nxd4 {[%clk 0:01:49.8]} 20. Qc5 {[%clk 0:01:28]} 20...
Qxc5 {[%clk 0:01:04.3]} 21. Nxc5 {[%clk 0:01:27.5]} 21... Bxd3 {[%clk 0:01:04]}
22. Rxd3 {[%clk 0:01:26]} 22... Ne2+ {[%clk 0:00:58.1]} 23. Kh1 {[%clk
0:01:25.8]} 23... b6 {[%clk 0:00:58.2]} 24. Na6 {[%clk 0:01:05.9]} 24... Ne4
{[%clk 0:00:45.7]} 25. Nc7 {[%clk 0:00:50.9]} 25... Rad8 {[%clk 0:00:45.3]} 26.
Rfd1 {[%clk 0:00:27.2]} 26... N2xg3+ {[%clk 0:00:37.4]} 27. fxg3 {[%clk
0:00:20]} 27... Rxd3 {[%clk 0:00:30.2]} 28. Rxd3 {[%clk 0:00:18.8]} 28... Rc8
{[%clk 0:00:27.6]} 29. Rd7 {[%clk 0:00:12.7]} 29... Nf6 {[%clk 0:00:26.5]} 30.
Re7 {[%clk 0:00:12.8]} 30... Kf8 {[%clk 0:00:18.9]} 0-1

[Event "*** Titled Tuesday Blitz"]
[Site "Chess.com"]
[Date "2021.02.09"]
[Round "2"]
[White "BahadirOzen"]
[Black "MattyDPerrine"]
[Result "1-0"]
[WhiteElo "2729"]
[BlackElo "2480"]
[TimeControl "180+1"]
[EndTime "10:18:00 PST"]
[Termination "BahadirOzen won on time"]

1. g3 {[%clk 0:03:00.9]} 1... d5 {[%clk 0:02:57]} 2. Bg2 {[%clk 0:03:01.2]} 2...
Nf6 {[%clk 0:02:54.7]} 3. d3 {[%clk 0:03:01.3]} 3... Nbd7 {[%clk 0:02:52.7]} 4.
Nf3 {[%clk 0:03:00.1]} 4... e5 {[%clk 0:02:52.8]} 5. O-O {[%clk 0:03:00.5]} 5...
Bd6 {[%clk 0:02:48.9]} 6. Nc3 {[%clk 0:02:59.2]} 6... c6 {[%clk 0:02:48.5]} 7.
e4 {[%clk 0:02:59.1]} 7... O-O {[%clk 0:02:44.5]} 8. h3 {[%clk 0:02:59.2]} 8...
Re8 {[%clk 0:02:22.1]} 9. Re1 {[%clk 0:02:43.9]} 9... d4 {[%clk 0:02:15.1]} 10.
Ne2 {[%clk 0:02:43.2]} 10... c5 {[%clk 0:02:09.3]} 11. Nd2 {[%clk 0:02:42.9]}
11... b5 {[%clk 0:02:05]} 12. a4 {[%clk 0:02:42.4]} 12... bxa4 {[%clk
0:02:05.9]} 13. Rxa4 {[%clk 0:02:40.3]} 13... Nb6 {[%clk 0:02:05.9]} 14. Ra1
{[%clk 0:02:40.2]} 14... a5 {[%clk 0:02:05.3]} 15. f4 {[%clk 0:02:35.4]} 15...
Qc7 {[%clk 0:01:46.9]} 16. Nf3 {[%clk 0:02:33]} 16... Nfd7 {[%clk 0:01:45.6]}
17. f5 {[%clk 0:01:39.9]} 17... c4 {[%clk 0:01:38.1]} 18. Bd2 {[%clk 0:01:38.1]}
18... a4 {[%clk 0:01:34]} 19. g4 {[%clk 0:01:38]} 19... Nc5 {[%clk 0:01:22.1]}
20. Nc1 {[%clk 0:01:36.6]} 20... a3 {[%clk 0:01:18.4]} 21. bxa3 {[%clk
0:01:29.7]} 21... f6 {[%clk 0:01:00]} 22. h4 {[%clk 0:01:28.1]} 22... c3 {[%clk
0:00:58.7]} 23. g5 {[%clk 0:01:27.3]} 23... cxd2 {[%clk 0:00:55.6]} 24. Nxd2
{[%clk 0:01:28.2]} 24... Nca4 {[%clk 0:00:40.4]} 25. Ncb3 {[%clk 0:01:27.8]}
25... Bd7 {[%clk 0:00:30.2]} 26. Qh5 {[%clk 0:01:27]} 26... Re7 {[%clk
0:00:20.6]} 27. Nf3 {[%clk 0:01:16.5]} 27... Qxc2 {[%clk 0:00:17.8]} 28. Nbd2
{[%clk 0:01:15.2]} 28... Nc3 {[%clk 0:00:13.2]} 29. Qg4 {[%clk 0:01:13.2]} 29...
Kh8 {[%clk 0:00:12.8]} 30. Rac1 {[%clk 0:01:12.5]} 30... Qa4 {[%clk 0:00:11.6]}
31. Bf1 {[%clk 0:01:11.4]} 31... Qc6 {[%clk 0:00:09.7]} 32. h5 {[%clk
0:01:09.9]} 32... h6 {[%clk 0:00:08.1]} 33. gxh6 {[%clk 0:01:09.6]} 33... gxh6
{[%clk 0:00:09]} 34. Nh4 {[%clk 0:01:09.5]} 34... Be8 {[%clk 0:00:09.4]} 35.
Ng6+ {[%clk 0:01:10.4]} 35... Bxg6 {[%clk 0:00:09.8]} 36. fxg6 {[%clk
0:01:08.3]} 36... Qd7 {[%clk 0:00:09.9]} 37. Qf3 {[%clk 0:01:08.5]} 37... Kg7
{[%clk 0:00:09.9]} 38. Bh3 {[%clk 0:01:09]} 38... Qb7 {[%clk 0:00:09.1]} 39. Nf1
{[%clk 0:01:09.5]} 39... f5 {[%clk 0:00:06.1]} 40. Ng3 {[%clk 0:01:09.1]} 40...
f4 {[%clk 0:00:05.2]} 41. Nf5+ {[%clk 0:01:09.3]} 41... Kh8 {[%clk 0:00:06.1]}
42. Nxh6 {[%clk 0:01:09.7]} 42... Kg7 {[%clk 0:00:05.9]} 43. Nf5+ {[%clk
0:01:10]} 43... Kh8 {[%clk 0:00:06.8]} 44. h6 {[%clk 0:01:10.5]} 44... Re6
{[%clk 0:00:06.6]} 45. g7+ {[%clk 0:01:10.6]} 45... Kh7 {[%clk 0:00:07.1]} 46.
Qh5 {[%clk 0:01:10.7]} 46... Rf6 {[%clk 0:00:06.8]} 47. Rc2 {[%clk 0:01:10.4]}
47... Qf7 {[%clk 0:00:06]} 48. Qh4 {[%clk 0:01:10.9]} 48... Rg6+ {[%clk
0:00:05.6]} 49. Kh1 {[%clk 0:01:09]} 49... Nd7 {[%clk 0:00:04.3]} 50. Rg2 {[%clk
0:01:05.1]} 50... Rxg2 {[%clk 0:00:04.3]} 51. Nxd6 {[%clk 0:01:05.6]} 51... Qf6
{[%clk 0:00:01.9]} 52. Bf5+ {[%clk 0:01:05.9]} 1-0

[Event "*** Titled Tuesday Blitz"]
[Site "Chess.com"]
[Date "2021.02.09"]
[Round "2"]
[White "fabianvivasz"]
[Black "Fusikk"]
[Result "0-1"]
[WhiteElo "2337"]
[BlackElo "2637"]
[TimeControl "180+1"]
[EndTime "10:18:02 PST"]
[Termination "Fusikk won by checkmate"]

1. e4 {[%clk 0:03:00.9]} 1... c6 {[%clk 0:02:59.5]} 2. Nc3 {[%clk 0:02:59.9]}
2... d5 {[%clk 0:02:59.7]} 3. Nf3 {[%clk 0:03:00.6]} 3... Bg4 {[%clk 0:02:59.3]}
4. h3 {[%clk 0:03:00.3]} 4... Bxf3 {[%clk 0:02:59.3]} 5. Qxf3 {[%clk 0:03:01.2]}
5... e6 {[%clk 0:02:59.8]} 6. Be2 {[%clk 0:02:43.2]} 6... g6 {[%clk 0:02:52.7]}
7. d3 {[%clk 0:02:14.4]} 7... Bg7 {[%clk 0:02:50.9]} 8. O-O {[%clk 0:02:00.8]}
8... Ne7 {[%clk 0:02:49.6]} 9. Qg3 {[%clk 0:01:58]} 9... O-O {[%clk 0:02:29.7]}
10. Qh4 {[%clk 0:01:48.5]} 10... d4 {[%clk 0:02:27.5]} 11. Nd1 {[%clk
0:01:45.4]} 11... e5 {[%clk 0:02:27.6]} 12. f4 {[%clk 0:01:36.8]} 12... exf4
{[%clk 0:02:28.5]} 13. Bxf4 {[%clk 0:01:34.7]} 13... Nd7 {[%clk 0:02:23.9]} 14.
Nf2 {[%clk 0:01:03.8]} 14... c5 {[%clk 0:02:19.7]} 15. Ng4 {[%clk 0:01:02.1]}
15... h5 {[%clk 0:02:11.1]} 16. Nh6+ {[%clk 0:00:45.7]} 16... Bxh6 {[%clk
0:02:05.3]} 17. Bxh6 {[%clk 0:00:45.1]} 17... Nc6 {[%clk 0:01:54]} 18. Qg3
{[%clk 0:00:33.3]} 18... h4 {[%clk 0:01:51.1]} 19. Qf4 {[%clk 0:00:26.5]} 19...
Nde5 {[%clk 0:01:46.4]} 20. Bxf8 {[%clk 0:00:25.6]} 20... Kxf8 {[%clk
0:01:47.3]} 21. Qh6+ {[%clk 0:00:24.8]} 21... Kg8 {[%clk 0:01:47.2]} 22. Rf4
{[%clk 0:00:23.6]} 22... Qf8 {[%clk 0:01:38.7]} 23. Qxh4 {[%clk 0:00:21.4]}
23... Qg7 {[%clk 0:01:36.1]} 24. Qg5 {[%clk 0:00:18]} 24... Rf8 {[%clk
0:01:29.4]} 25. Raf1 {[%clk 0:00:18.4]} 25... Nd7 {[%clk 0:01:24.4]} 26. Bg4
{[%clk 0:00:17.9]} 26... Nde5 {[%clk 0:01:24.6]} 27. h4 {[%clk 0:00:17.6]} 27...
f6 {[%clk 0:01:05.2]} 28. Be6+ {[%clk 0:00:14.2]} 28... Kh7 {[%clk 0:01:01]} 29.
Rxf6 {[%clk 0:00:14.1]} 29... Rxf6 {[%clk 0:00:54.9]} 30. Rxf6 {[%clk 0:00:15]}
30... Qh6 {[%clk 0:00:47]} 31. Qg3 {[%clk 0:00:02.8]} 31... Qe3+ {[%clk
0:00:33]} 32. Qxe3 {[%clk 0:00:03]} 32... dxe3 {[%clk 0:00:33.9]} 33. Kf1 {[%clk
0:00:03.6]} 33... Nd4 {[%clk 0:00:34.1]} 34. c3 {[%clk 0:00:03.6]} 34... e2+
{[%clk 0:00:30.8]} 35. Ke1 {[%clk 0:00:03.3]} 35... Nxd3+ {[%clk 0:00:30.6]} 36.
Kd2 {[%clk 0:00:03.7]} 36... e1=Q+ {[%clk 0:00:31]} 37. Kxd3 {[%clk 0:00:04.2]}
37... Qe2# {[%clk 0:00:30.7]} 0-1

[Event "*** Titled Tuesday Blitz"]
[Site "Chess.com"]
[Date "2021.02.09"]
[Round "2"]
[White "yuki_chess123"]
[Black "NicoChasin"]
[Result "1-0"]
[WhiteElo "2303"]
[BlackElo "2600"]
[TimeControl "180+1"]
[EndTime "10:18:02 PST"]
[Termination "yuki_chess123 won by checkmate"]

1. d4 {[%clk 0:03:00.9]} 1... Nf6 {[%clk 0:02:52.4]} 2. Nf3 {[%clk 0:02:56.3]}
2... c5 {[%clk 0:02:51.1]} 3. e3 {[%clk 0:02:54.6]} 3... d6 {[%clk 0:02:48.5]}
4. c4 {[%clk 0:02:51.9]} 4... g6 {[%clk 0:02:47.2]} 5. Nc3 {[%clk 0:02:50.6]}
5... Nbd7 {[%clk 0:02:44.6]} 6. d5 {[%clk 0:02:47.5]} 6... Bg7 {[%clk
0:02:41.2]} 7. Be2 {[%clk 0:02:47.1]} 7... O-O {[%clk 0:02:40.8]} 8. O-O {[%clk
0:02:46.5]} 8... a6 {[%clk 0:02:29]} 9. a4 {[%clk 0:02:44]} 9... Qc7 {[%clk
0:02:03.9]} 10. Ra2 {[%clk 0:02:42.5]} 10... Rb8 {[%clk 0:02:03.4]} 11. b3
{[%clk 0:02:38.6]} 11... e6 {[%clk 0:01:57.6]} 12. dxe6 {[%clk 0:02:37.6]} 12...
fxe6 {[%clk 0:01:58.5]} 13. Ng5 {[%clk 0:02:34.1]} 13... Ne5 {[%clk 0:01:52.9]}
14. f4 {[%clk 0:02:20.8]} 14... Nc6 {[%clk 0:01:51.5]} 15. Rd2 {[%clk
0:02:08.7]} 15... Rd8 {[%clk 0:01:43.3]} 16. Nce4 {[%clk 0:02:00.7]} 16... h6
{[%clk 0:01:36.8]} 17. Nxf6+ {[%clk 0:02:00.2]} 17... Bxf6 {[%clk 0:01:36.8]}
18. Ne4 {[%clk 0:01:58.1]} 18... Be7 {[%clk 0:01:37]} 19. Bb2 {[%clk 0:01:56.3]}
19... Nb4 {[%clk 0:01:31.2]} 20. Qb1 {[%clk 0:01:51.6]} 20... d5 {[%clk
0:01:29]} 21. Nf6+ {[%clk 0:01:27.7]} 21... Kf7 {[%clk 0:01:28.6]} 22. cxd5
{[%clk 0:01:26.5]} 22... exd5 {[%clk 0:01:28.6]} 23. f5 {[%clk 0:01:26.2]} 23...
gxf5 {[%clk 0:00:54.8]} 24. Bh5+ {[%clk 0:01:20.8]} 24... Kf8 {[%clk 0:00:50]}
25. Rxf5 {[%clk 0:01:17]} 25... Bd6 {[%clk 0:00:36.6]} 26. Nxd5+ {[%clk
0:01:11.8]} 26... Kg8 {[%clk 0:00:27.1]} 27. Nxc7 {[%clk 0:01:06.9]} 27... Bxc7
{[%clk 0:00:28]} 28. Rg5+ {[%clk 0:01:01]} 28... Kf8 {[%clk 0:00:14.3]} 29. Bg7+
{[%clk 0:00:55.7]} 29... Ke7 {[%clk 0:00:14]} 30. Qe4+ {[%clk 0:00:47.9]} 30...
Be6 {[%clk 0:00:13.1]} 31. Rg6 {[%clk 0:00:43.1]} 31... Be5 {[%clk 0:00:07.6]}
32. Qxe5 {[%clk 0:00:41]} 32... Rxd2 {[%clk 0:00:08.2]} 33. Rxe6+ {[%clk
0:00:36]} 33... Kd7 {[%clk 0:00:08.6]} 34. Re7+ {[%clk 0:00:35.1]} 34... Kc6
{[%clk 0:00:07.6]} 35. Qc7+ {[%clk 0:00:26.6]} 35... Kd5 {[%clk 0:00:05.9]} 36.
Re5# {[%clk 0:00:24.6]} 1-0

[Event "*** Titled Tuesday Blitz"]
[Site "Chess.com"]
[Date "2021.02.09"]
[Round "2"]
[White "Orest_Vovk"]
[Black "Kaponov"]
[Result "0-1"]
[WhiteElo "2409"]
[BlackElo "2212"]
[TimeControl "180+1"]
[EndTime "10:18:02 PST"]
[Termination "Kaponov won by resignation"]

1. h4 {[%clk 0:03:00.9]} 1... d5 {[%clk 0:02:57.4]} 2. h5 {[%clk 0:03:00.5]}
2... e5 {[%clk 0:02:51.1]} 3. h6 {[%clk 0:03:00]} 3... Nxh6 {[%clk 0:02:49.3]}
4. d4 {[%clk 0:03:00.2]} 4... exd4 {[%clk 0:02:43.6]} 5. Bxh6 {[%clk 0:03:00.3]}
5... gxh6 {[%clk 0:02:43.5]} 6. Qxd4 {[%clk 0:03:00.8]} 6... Rg8 {[%clk
0:02:42.9]} 7. Nc3 {[%clk 0:03:00.8]} 7... Bg7 {[%clk 0:02:35.8]} 8. O-O-O
{[%clk 0:02:55.1]} 8... Bxd4 {[%clk 0:02:34.6]} 9. Rxd4 {[%clk 0:02:55.3]} 9...
c6 {[%clk 0:02:33.2]} 10. Nf3 {[%clk 0:02:51.6]} 10... Bg4 {[%clk 0:02:29.6]}
11. e4 {[%clk 0:02:47.1]} 11... Bxf3 {[%clk 0:02:28.4]} 12. gxf3 {[%clk
0:02:46.8]} 12... Nd7 {[%clk 0:02:07.4]} 13. exd5 {[%clk 0:02:44.2]} 13... c5
{[%clk 0:02:07.3]} 14. Re4+ {[%clk 0:02:40.5]} 14... Kf8 {[%clk 0:02:07.2]} 15.
f4 {[%clk 0:02:13.7]} 15... Nf6 {[%clk 0:02:01.6]} 16. Re5 {[%clk 0:02:13.6]}
16... Ng4 {[%clk 0:02:00.4]} 17. Rf5 {[%clk 0:02:05.7]} 17... Qd7 {[%clk
0:01:47.6]} 18. Rfh5 {[%clk 0:01:50.4]} 18... Qd6 {[%clk 0:01:23.2]} 19. Rf5
{[%clk 0:01:28.8]} 19... Re8 {[%clk 0:01:10.4]} 20. Bb5 {[%clk 0:01:24]} 20...
Qg6 {[%clk 0:00:54.6]} 21. Rhh5 {[%clk 0:01:02.7]} 21... Nf6 {[%clk 0:00:27.2]}
22. Bxe8 {[%clk 0:00:43.8]} 22... Nxh5 {[%clk 0:00:26.5]} 23. Re5 {[%clk
0:00:35.3]} 23... Nxf4 {[%clk 0:00:23.1]} 24. b3 {[%clk 0:00:29.3]} 24... Qg1+
{[%clk 0:00:22.3]} 25. Kb2 {[%clk 0:00:28.8]} 25... Qxf2 {[%clk 0:00:22.6]} 26.
d6 {[%clk 0:00:27.2]} 26... Qd4 {[%clk 0:00:22.5]} 27. d7 {[%clk 0:00:24.8]}
27... Ne6 {[%clk 0:00:19.3]} 28. Rd5 {[%clk 0:00:18]} 28... Qg7 {[%clk
0:00:17.8]} 29. d8=Q {[%clk 0:00:17.5]} 29... Nxd8 {[%clk 0:00:17.5]} 30. Rxd8
{[%clk 0:00:18.4]} 30... Ke7 {[%clk 0:00:18]} 31. Rd7+ {[%clk 0:00:18.7]} 31...
Kxe8 {[%clk 0:00:18]} 32. Rxb7 {[%clk 0:00:19.6]} 32... h5 {[%clk 0:00:15.5]}
33. Rc7 {[%clk 0:00:15]} 33... Qd4 {[%clk 0:00:14.9]} 34. Rxc5 {[%clk
0:00:15.9]} 34... Qxc5 {[%clk 0:00:14.5]} 0-1